Cogmind - Beta 13 @@@ ROGUE MODE // 2024.05.07 @ 03:43:23 Player: Toa of Guts Result: Escaped! Performance ------------- Evolutions (9) 4500 Regions Visited (17) 3400 Robots Destroyed (98) 490 Value Destroyed (3331) 3331 Prototype IDs (42) 840 Alien Tech Used (0) 0 Bonus (3635) 3635 TOTAL SCORE: 16196 Bonus ------- Follower Combat Kills 35 Aligned with FarCom 300 Met Data Miner 300 Win 3000 Cogmind --------- Core Integrity 1600/1600 Matter 220/300 Energy 189/190 System Corruption 0% Temperature Cool (2) Movement Flying (44) Location To Epsilon Eridani Parts ------- > --- POWER (1) -------- Light Quantum Reactor > --- PROPULSION (6) --- Flying Fortress v7 Impulse Thruster Array > --- UTILITY (16) ----- Advanced Power Amplifier Advanced Heat Sink Medium Storage Unit Triangulator Enhanced Optical Array Advanced Signal Interpreter Advanced Terrain Scanner Advanced Terrain Scan Processor Transmission Jammer Advanced ECM Suite Hacking Suite Improved Hacking Suite Advanced Hacking Suite System Shield Advanced System Shield Improved System Guard > --- WEAPON (2) ------- Heavy Wave Gun Matter Neutralizer > --- INVENTORY (10) --- Light Quantum Reactor Advanced Heat Sink Advanced Trap Scanner Advanced Component Analysis Suite Improved System Restoration Module Long-range Missile Launcher Advanced Datajack Axe Peak State ------------ > --- POWER ------------ Light Quantum Reactor > --- PROPULSION ------- Flying Fortress v7 Impulse Thruster Array > --- UTILITY ---------- Advanced Power Amplifier Advanced Heat Sink Medium Storage Unit Improved Trap Scanner Enhanced Optical Array Advanced Signal Interpreter Advanced Terrain Scanner Advanced Terrain Scan Processor Transmission Jammer Advanced ECM Suite Hacking Suite Improved Hacking Suite Advanced Hacking Suite System Shield Advanced System Shield Advanced Component Analysis Suite > --- WEAPON ----------- Heavy Wave Gun Matter Neutralizer > --- INVENTORY -------- Light Quantum Reactor Impulse Thruster Array Advanced Heat Sink Triangulator Authchip [Device] Improved System Restoration Module Long-range Missile Launcher Advanced Datajack Axe [Rating: 153] Favorites ----------- Power Cooled Ion Engine Engine Cooled Ion Engine Power Core Neutrino Core Reactor Light Quantum Reactor Propulsion Armored Huge Wheel Treads Light Treads Leg Aluminum Leg Wheel Armored Huge Wheel Flight Unit Flying Fortress v7 Utility Medium Storage Unit Device Seismic Detector Storage Medium Storage Unit Processor Enhanced Optical Array Hackware System Shield Protection Heavy Armor Plating Weapon Heavy Assault Rifle Energy Gun Medium Laser Energy Cannon Matter Neutralizer Ballistic Gun Heavy Assault Rifle Ballistic Cannon Gauss Cannon Launcher Heavy Missile Launcher Impact Weapon Great Maul Slashing Weapon Axe Special Melee Weapon Advanced Datajack Build | -11 -10 -10 -9 -9 -9 -8 -8 -7 -7 -7 -6 -6 -5 -4 -3 -2 -1 ------- Run | Yrd Mat Min Mat Min Exi Min Mat Fac Low Dat Pro Fac Fac Fac Res Res Acc Slots Evolved 18 | . . . 2 . . . 2 2 . . . 2 2 2 2 2 2 Power . | . . . . . . . . . . . . . . . . . . Propulsion 4 | . . . 1 . . . 1 . . . . . . 2 . . . Utility 14 | . . . 1 . . . 1 2 . . . 2 2 . 2 2 2 Weapon . | . . . . . . . . . . . . . . . . . . Parts Attached 165 | 7 17 . 21 . 2 2 16 7 13 1 12 36 5 8 3 9 6 Power 13 | 1 2 . 1 . . . . . 1 . . 5 1 . . 2 . Engine 9 | 1 2 . 1 . . . . . 1 . . 4 . . . . . Core 2 | . . . . . . . . . . . . 1 1 . . . . Reactor 2 | . . . . . . . . . . . . . . . . 2 . Propulsion 23 | 3 3 . 4 . . 1 3 . 1 . 1 5 . 1 . 1 . Treads 1 | 1 . . . . . . . . . . . . . . . . . Leg 11 | 2 3 . 3 . . 1 . . . . . 2 . . . . . Wheel 7 | . . . 1 . . . 2 . 1 . 1 2 . . . . . Hover . | . . . . . . . . . . . . . . . . . . Flight 4 | . . . . . . . 1 . . . . 1 . 1 . 1 . Utility 64 | 1 2 . 5 . 2 . 5 4 4 . 6 15 3 4 3 4 6 Device 34 | . . . 1 . . . 4 2 3 . 2 9 1 4 2 4 2 Storage 5 | 1 1 . . . 1 . 1 . . . . 1 . . . . . Processor 4 | . . . . . . . . . . . . 2 . . . . 2 Hackware 7 | . . . . . . . . . . . . 2 2 . 1 . 2 Protection 14 | . 1 . 4 . 1 . . 2 1 . 4 1 . . . . . Artifact . | . . . . . . . . . . . . . . . . . . Weapon 65 | 2 10 . 11 . . 1 8 3 7 1 5 11 1 3 . 2 . Energy Gun 6 | 2 3 . . . . . . . . . . . . . . 1 . Energy Cannon 4 | . . . . . . . . . . . . 2 1 1 . . . Ballistic Gun 18 | . 4 . 7 . . 1 3 1 2 . . . . . . . . Ballistic Cannon 9 | . . . . . . . 2 . 2 . 2 3 . . . . . Launcher 6 | . . . . . . . 2 . . 1 1 1 . . . 1 . Special Weapon . | . . . . . . . . . . . . . . . . . . Impact Weapon 16 | . . . 4 . . . 1 2 3 . 2 4 . . . . . Slashing Weapon 5 | . 3 . . . . . . . . . . 1 . 1 . . . Piercing Weapon . | . . . . . . . . . . . . . . . . . . Special Melee Weapon 1 | . . . . . . . . . . . . . . 1 . . . Unidentified Prototypes 2 | . . . 1 . . . . . . . 1 . . . . . . Parts Lost 27 | . . . 2 . . . 1 . 8 . 5 10 . . . 1 . Power 4 | . . . 1 . . . . . 1 . 1 1 . . . . . Propulsion 5 | . . . . . . . . . 1 . 1 3 . . . . . Utility 14 | . . . 1 . . . 1 . 4 . 3 4 . . . 1 . Weapon 4 | . . . . . . . . . 2 . . 2 . . . . . Highest Loss Streak 5 | . . . 1 . . . 1 . 4 . 4 5 . . . 1 . To Critical Strikes . | . . . . . . . . . . . . . . . . . . Average Slot Usage (%) 81 | . 99 100 91 88 88 88 67 78 77 69 71 73 80 78 77 80 83 Engine 6 | . 14 14 11 11 11 11 9 7 6 7 3 3 . . . . . Leg 8 | . 28 28 27 22 22 22 . . . . . . . . . . . Wheel 7 | . . . 5 11 11 11 9 15 14 15 15 9 . . . . . Flight 2 | . . . . . . . 4 . . . . 2 5 10 9 8 8 Device 12 | . . . 2 . . . 8 23 19 15 11 17 25 21 21 28 24 Storage 8 | . 14 14 11 11 11 11 9 7 7 7 7 6 5 5 4 4 4 Processor 3 | . . . . . . . . . . . . 6 11 10 9 8 15 Hackware 4 | . . . . . . . . . . . . 5 12 15 18 17 19 Protection 9 | . 13 14 11 11 11 11 9 9 12 7 17 5 . . . . . Energy Gun 2 | . 17 . . . . . . . . . . . . . . 2 4 Energy Cannon 1 | . . . . . . . . . . . . 4 5 5 4 4 4 Ballistic Gun 6 | . 8 28 20 11 11 20 11 13 8 . . . . . . . . Ballistic Cannon 1 | . . . . . . . 2 . 2 . 3 2 . . . . . Launcher 1 | . . . . . . . . . . . 6 . . . . 1 . Impact Weapon 2 | . . . 1 11 11 1 3 1 3 15 3 3 . . . . . Slashing Weapon 1 | . 2 . . . . . . . . . . 1 5 5 4 . . Naked Turns . | . . . . . . . . . . . . . . . . . . Heaviest Build 127 | 14 22 22 39 38 38 39 118 114 109 104 127 114 43 44 46 54 54 Greatest Support 66 | 20 20 20 30 16 16 16 56 56 56 56 56 50 50 63 63 66 66 Greatest Overweight (x) 10 | . 1 1 2 2 2 2 3 2 1 1 4 10 . . . . . Average Overweight (x) . | . . 1 1 2 2 2 . 1 1 1 2 1 . . . . . Largest Inventory Capacity 25 | 8 10 10 10 10 10 10 25 25 25 25 25 25 10 10 10 10 10 Average Capacity 15 | 6 8 10 10 10 10 10 17 25 25 25 25 19 10 10 10 10 10 Most Carried 25 | 6 10 10 10 10 10 10 23 25 25 21 25 25 10 10 10 10 10 Average Carried 14 | 3 8 10 9 10 9 9 15 23 23 21 24 18 9 9 9 9 8 Final Capacity 25 | 8 10 10 10 10 10 10 25 25 25 25 25 10 10 10 10 10 10 Final Carried 25 | 6 10 10 10 10 9 9 23 25 21 21 25 10 10 10 10 10 8 Class Distribution -------------------- 57% | Mutant 13% | Hacker-Scout 12% | Scavenger-Mutant 5% | Scout 3% | Wizard-Scout Dominant Class ---------------- Mutant | -10/Materials Mutant | -10/Mines Scavenger-Mutant | -9/Materials Scavenger-Mutant | -9/Mines Scavenger-Mutant | -9/Exiles Mutant | -8/Mines Mutant | -8/Materials Skirmisher | -7/Factory Mutant | -7/Lower Caves Mutant | -7/Data Miner Mutant | -6/Proximity Caves Mutant | -6/Factory Hacker-Scout | -5/Factory Hacker-Scout | -4/Factory Hacker-Scout | -3/Research Hacker-Scout | -2/Research Wizard-Scout | -1/Access Resources | -11 -10 -10 -9 -9 -9 -8 -8 -7 -7 -7 -6 -6 -5 -4 -3 -2 -1 ----------- Run | Yrd Mat Min Mat Min Exi Min Mat Fac Low Dat Pro Fac Fac Fac Res Res Acc Matter Collected 2809 | 204 260 . 491 . . 142 358 . 251 . 381 318 95 . 157 152 . Remotely . | . . . . . . . . . . . . . . . . . . Salvage Created 3276 | . 546 . 794 . . 122 471 . 354 . 420 227 95 . . 247 . Parts 165 | . 34 . 56 . . 2 28 . 8 . 10 9 4 . . 14 . Haulers Intercepted 6 | . 2 . 1 . . . 1 . . . 1 . 1 . . . . Recyclers Shooed 3 | . 2 . 1 . . . . . . . . . . . . . . Parts Field Recycled . | . . . . . . . . . . . . . . . . . . Retrieved Matter . | . . . . . . . . . . . . . . . . . . Parts Self-Destructed 13 | . . . . . . . . . 8 . 5 . . . . . . Prevented 2 | . . . . . . . . . . . 2 . . . . . . Kills | -11 -10 -10 -9 -9 -9 -8 -8 -7 -7 -7 -6 -6 -5 -4 -3 -2 -1 ------- Run | Yrd Mat Min Mat Min Exi Min Mat Fac Low Dat Pro Fac Fac Fac Res Res Acc Combat Hostiles Destroyed 78 | . 13 . 20 . . 2 10 . 8 . 13 5 . . . 7 . Melee 1 | . . . . . . . . . . . . 1 . . . . . Guns 40 | . 12 . 20 . . 2 2 . 4 . . . . . . . . Cannons 15 | . . . . . . . 4 . 1 . 4 3 . . . 3 . AOE 17 | . . . . . . . 4 . . . 9 . . . . 4 . Classes Destroyed 14 | . 5 . 3 . . . 3 . . . 1 2 . . . . . Worker 2 | . . . . . . . 2 . . . . . . . . . . Builder 2 | . . . . . . . 2 . . . . . . . . . . Tunneler 1 | . . . . . . . . . . . . 1 . . . . . Hauler 6 | . 2 . 1 . . . 1 . . . 1 . 1 . . . . Recycler 1 | . . . 1 . . . . . . . . . . . . . . Operator 1 | . 1 . . . . . . . . . . . . . . . . Watcher 7 | . 3 . 2 . . . 1 . . . . 1 . . . . . Swarmer 20 | . 6 . 8 . . . . . 1 . . . . . . 5 . Grunt 43 | . 7 . 8 . . 2 7 . 6 . 8 3 . . . 2 . Brawler 3 | . . . 1 . . . 1 . . . 1 . . . . . . Duelist 4 | . . . . . . . . . . . 3 1 . . . . . Sentry 6 | . . . 3 . . . 1 . 1 . 1 . . . . . . Hunter 1 | . . . . . . . 1 . . . . . . . . . . Programmer 1 | . . . . . . . . . . . . 1 . . . . . Best Kill Streak 10 | . 3 . 10 . . 2 5 . 4 . 9 4 1 . . 5 . Combat Bots Only 10 | . 3 . 10 . . 2 4 . 4 . 9 4 . . . 5 . Max Kills in Single Turn 3 | . 1 . 2 . . 1 3 . 2 . 3 1 1 . . 2 . Gunslinging 1 | . . . 1 . . . . . . . . . . . . . . Exploded 3 | . . . . . . . 2 . . . 3 . . . . 2 . Melee 1 | . . . . . . . . . . . . 1 . . . . . Uniques/NPCs Destroyed . | . . . . . . . . . . . . . . . . . . Combat | -11 -10 -10 -9 -9 -9 -8 -8 -7 -7 -7 -6 -6 -5 -4 -3 -2 -1 -------- Run | Yrd Mat Min Mat Min Exi Min Mat Fac Low Dat Pro Fac Fac Fac Res Res Acc Hostile Shots Fired 513 | . 56 . 62 . . 15 46 . 140 . 66 76 . . . 50 2 Missed 138 | . 18 . 18 . . 3 11 . 35 . 21 13 . . . 17 2 Damage Taken 6526 | . 374 . 466 . . 211 689 . 1505 . 1003 1484 . . . 794 . Core 885 | . 48 . 39 . . 54 16 . 222 . 58 349 . . . 99 . Absorbed by Shields . | . . . . . . . . . . . . . . . . . . Redirected to Shielding 103 | . . . . . . . . . . . 36 67 . . . . . Core Remaining (%) 87 | 100 . 80 . . . 76 97 . . . 60 58 100 100 100 93 100 Volleys Fired 269 | . 50 . 46 . . 12 31 . 18 . 22 13 10 . 3 32 32 Largest 2 | . 2 . 2 . . 2 2 . 2 . 2 2 1 . 1 2 1 Hottest 193 | . 100 . 46 . . 46 96 . 96 . 96 128 90 . 105 193 105 Shots Fired 432 | . 100 . 92 . . 24 48 . 31 . 29 21 10 . 3 42 32 Gun 268 | . 100 . 92 . . 24 21 . 21 . . . . . . 10 . Cannon 140 | . . . . . . . 22 . 10 . 13 21 10 . 3 29 32 Launcher 24 | . . . . . . . 5 . . . 16 . . . . 3 . Special . | . . . . . . . . . . . . . . . . . . Kinetic 231 | . 18 . 92 . . 24 43 . 31 . 13 10 . . . . . Thermal 177 | . 82 . . . . . . . . . . 11 10 . 3 39 32 Explosive 24 | . . . . . . . 5 . . . 16 . . . . 3 . Electromagnetic . | . . . . . . . . . . . . . . . . . . Robot Hit Streak 18 | . 8 . 12 . . 18 10 . 16 . 8 12 . . . 12 . Robot Miss Streak 2 | . 2 . 2 . . 1 1 . 1 . 2 2 . . . 1 . Penetration Max 1 | . . . . . . . 1 . . . . 1 . . . . . Secondary Targets 6 | . 1 . 3 . . 1 . . 1 . . . . . . . . Max Gunslinging Chain 1 | . 1 . 1 . . 1 . . 1 . . . . . . . . Shots Hit Robots 293 | . 66 . 63 . . 21 35 . 31 . 22 35 1 1 . 18 . Core Hits 159 | . 28 . 34 . . 6 19 . 9 . 40 7 1 . . 15 . Critical Kills 1 | . . . . . . . 1 . . . . . . . . . . Critical Parts Destroyed 6 | . . . . . . . . . 2 . 1 3 . . . . . Critical Strikes 21 | . 3 . . . . . 7 . 3 . 3 5 . . . . . Burn 3 | . 3 . . . . . . . . . . . . . . . . Blast 11 | . . . . . . . 6 . 1 . 2 2 . . . . . Smash 7 | . . . . . . . 1 . 2 . 1 3 . . . . . Melee Attacks 141 | . 6 . 6 . . . 13 3 7 . 1 55 20 11 19 . . Impact 77 | . . . 6 . . . 13 3 7 . 1 47 . . . . . Slashing 63 | . 6 . . . . . . . . . . 8 20 10 19 . . Piercing . | . . . . . . . . . . . . . . . . . . Sneak Attacks 5 | . . . . . . . 1 . . . 1 1 1 1 . . . Combat Hostiles . | . . . . . . . . . . . . . . . . . . Follow-up Attacks 3 | . . . . . . . . . 1 . . 2 . . . . . Damage Inflicted 9142 | . 852 . 842 . . 320 1405 . 813 . 2483 1234 57 . . 1136 . Guns 2814 | . 852 . 842 . . 320 242 . 329 . . . . . . 229 . Cannons 1785 | . . . . . . . 533 . 198 . 303 420 . . . 331 . Explosions 3258 | . . . . . . . 562 . . . 2120 . . . . 576 . Melee 1277 | . . . . . . . 60 . 286 . 60 814 57 . . . . Ramming 8 | . . . . . . . 8 . . . . . . . . . . Kinetic 3199 | . 163 . 842 . . 320 775 . 527 . 303 269 . . . . . Thermal 1400 | . 689 . . . . . . . . . . 151 . . . 560 . Explosive 3258 | . . . . . . . 562 . . . 2120 . . . . 576 . Electromagnetic . | . . . . . . . . . . . . . . . . . . Impact 1220 | . . . . . . . 60 . 286 . 60 814 . . . . . Slashing 57 | . . . . . . . . . . . . . 57 . . . . Piercing . | . . . . . . . . . . . . . . . . . . Highest Corruption 2 | . . . . . . . . . . . . 2 . 1 . . . Average Corruption 1 | . . . . . . . . . . . . 1 . 1 . . . Corruption Purged 4 | . . . . . . . . . . . . 3 . 1 . . . Corruption Blocked . | . . . . . . . . . . . . . . . . . . Effects 2 | . . . . . . . . . . . . 2 . . . . . Message Errors 2 | . . . . . . . . . . . . 2 . . . . . Overload Shots . | . . . . . . . . . . . . . . . . . . Overflow Damage 580 | . . . . . . . 22 . 138 . 71 244 . . . 105 . Projectiles 41 | . . . . . . . 5 . 17 . . 19 . . . . . Explosions 133 | . . . . . . . 17 . . . 11 . . . . 105 . Melee 406 | . . . . . . . . . 121 . 60 225 . . . . . Knockbacks 5 | . . . . . . . 1 . 3 . . 1 . . . . . Impact 2 | . . . . . . . . . 2 . . . . . . . . Kinetic 2 | . . . . . . . 1 . . . . 1 . . . . . Secondary 1 | . . . . . . . . . 1 . . . . . . . . Self-Inflicted Damage 169 | . . . . . . . 38 . . . 85 . . . . 46 . Shots 6 | . . . . . . . 2 . . . 3 . . . . 1 . Rammed 1 | . . . . . . . 1 . . . . . . . . . . Targets Rammed 1 | . . . . . . . 1 . . . . . . . . . . Kicked . | . . . . . . . . . . . . . . . . . . Crushed . | . . . . . . . . . . . . . . . . . . Highest Temperature 395 | . 384 . 5 . . 27 395 . 6 . 131 162 10 . 24 253 52 Average Temperature 106 | . 130 . 3 . . 6 233 . 4 . 62 55 4 . 14 68 7 Received Heat Transfer 1704 | . 129 . 168 . . 126 279 . 489 . 243 135 . . . 135 . Effects 6 | . 5 . . . . . 1 . . . . . . . . . . Shutdowns 1 | . 1 . . . . . . . . . . . . . . . . Energy Bleed 5 | . 4 . . . . . 1 . . . . . . . . . . Siege Activations . | . . . . . . . . . . . . . . . . . . Robots Corrupted . | . . . . . . . . . . . . . . . . . . Combat Hostiles . | . . . . . . . . . . . . . . . . . . Parts Fried 7 | . . . . . . . . . 4 . 1 2 . . . . . Impact Corruptions 15 | . . . . . . . . . 5 . 1 9 . . . . . Robots Melted 1 | . 1 . . . . . . . . . . . . . . . . Combat Hostiles 1 | . 1 . . . . . . . . . . . . . . . . Parts Melted 8 | . 7 . . . . . . . . . . . . . . 1 . Heat Transferred 3186 | . 2257 . . . . . . . . . . 300 . . . 629 . Parts Sabotaged . | . . . . . . . . . . . . . . . . . . Parts Stolen 1 | . . . . . . . . . 1 . . . . . . . . Parts Stripped . | . . . . . . . . . . . . . . . . . . Power Chain Reactions . | . . . . . . . . . . . . . . . . . . Alert | -11 -10 -10 -9 -9 -9 -8 -8 -7 -7 -7 -6 -6 -5 -4 -3 -2 -1 ------- Run | Yrd Mat Min Mat Min Exi Min Mat Fac Low Dat Pro Fac Fac Fac Res Res Acc Peak Influence 449 | . 304 63 373 119 . 50 449 233 . . . 116 45 33 91 269 298 Initial 203 | . . 63 24 119 . . 19 203 . . . 17 11 7 . 3 160 Average 110 | . 139 63 228 119 . 30 110 207 . . . 34 25 17 26 200 215 Maximum Alert Level 2 | . 1 . 1 . . . 2 1 . . . . . . . 1 1 Low Security (%) 75 | 100 84 100 30 100 . 100 82 3 . . . 100 100 100 100 34 44 Level 1 24 | . 15 . 69 . . . 11 96 . . . . . . . 65 55 Level 2 . | . . . . . . . 6 . . . . . . . . . . Level 3 . | . . . . . . . . . . . . . . . . . . Level 4 . | . . . . . . . . . . . . . . . . . . Level 5 . | . . . . . . . . . . . . . . . . . . High Security . | . . . . . . . . . . . . . . . . . . Max Security . | . . . . . . . . . . . . . . . . . . Squads Dispatched 12 | . 1 . 2 . . . . . . . 1 2 1 1 . 2 2 Investigation 2 | . 1 . . . . . . . . . . . 1 . . . . Extermination 5 | . . . . . . . . . . . . 2 . 1 . 1 1 Reinforcement 4 | . . . 2 . . . . . . . . . . . . 1 1 Assault 1 | . . . . . . . . . . . 1 . . . . . . Garrison . | . . . . . . . . . . . . . . . . . . Intercept . | . . . . . . . . . . . . . . . . . . Searches Triggered . | . . . . . . . . . . . . . . . . . . Construction Impeded . | . . . . . . . . . . . . . . . . . . Haulers Reinforced . | . . . . . . . . . . . . . . . . . . Active Scanning Responses . | . . . . . . . . . . . . . . . . . . Cargo Convoy Interrupts . | . . . . . . . . . . . . . . . . . . Stealth | -11 -10 -10 -9 -9 -9 -8 -8 -7 -7 -7 -6 -6 -5 -4 -3 -2 -1 --------- Run | Yrd Mat Min Mat Min Exi Min Mat Fac Low Dat Pro Fac Fac Fac Res Res Acc Distress Signals 6 | . 1 . 1 . . . 2 . . . . . . . 1 . 1 Communications Jammed 4 | . . . . . . . . . . . . . . . . . 4 Distress Signals 4 | . . . . . . . . . . . . . . . . . 4 Times Spotted 128 | . 24 . 30 . . 2 15 1 11 . 19 12 . . 1 9 4 Peak Tracking Total 7 | . 5 . 7 . . 2 6 1 6 . 6 5 . 1 2 5 5 Tactical Retreats 13 | . 3 . . . . . 3 . 2 . 4 . . . 1 . . Traps | -11 -10 -10 -9 -9 -9 -8 -8 -7 -7 -7 -6 -6 -5 -4 -3 -2 -1 ------- Run | Yrd Mat Min Mat Min Exi Min Mat Fac Low Dat Pro Fac Fac Fac Res Res Acc Traps Triggered 5 | . 1 . 1 . . . 1 . . . . . . 1 . 1 . Indirectly . | . . . . . . . . . . . . . . . . . . Trap Hack Attempts . | . . . . . . . . . . . . . . . . . . Triggered . | . . . . . . . . . . . . . . . . . . Disarmed . | . . . . . . . . . . . . . . . . . . Reprogrammed . | . . . . . . . . . . . . . . . . . . Reused . | . . . . . . . . . . . . . . . . . . Traps Extracted . | . . . . . . . . . . . . . . . . . . Installed . | . . . . . . . . . . . . . . . . . . Triggered . | . . . . . . . . . . . . . . . . . . Machines | -11 -10 -10 -9 -9 -9 -8 -8 -7 -7 -7 -6 -6 -5 -4 -3 -2 -1 ---------- Run | Yrd Mat Min Mat Min Exi Min Mat Fac Low Dat Pro Fac Fac Fac Res Res Acc Machines Disabled 3 | . . . . . . . 1 . . . . 2 . . . . . Max in Single Turn 1 | . . . . . . . 1 . . . . 1 . . . . . Garrison Access 4 | . . . . . . . . . . . . 2 1 . 1 . . Machines Repaired . | . . . . . . . . . . . . . . . . . . Machines Dismantled . | . . . . . . . . . . . . . . . . . . Machines Sabotaged . | . . . . . . . . . . . . . . . . . . Overloaded Fab Kills . | . . . . . . . . . . . . . . . . . . Hacking | -11 -10 -10 -9 -9 -9 -8 -8 -7 -7 -7 -6 -6 -5 -4 -3 -2 -1 --------- Run | Yrd Mat Min Mat Min Exi Min Mat Fac Low Dat Pro Fac Fac Fac Res Res Acc Machines Accessed 51 | . 6 . 5 . 3 . 1 1 . 4 . 8 8 4 8 . 3 Terminals 37 | . 6 . 5 . . . . 1 . . . 6 6 4 7 . 2 Fabricators 1 | . . . . . . . . . . . . . . . . . 1 Repair Stations . | . . . . . . . . . . . . . . . . . . Recycling Units . | . . . . . . . . . . . . . . . . . . Scanalyzers 1 | . . . . . . . 1 . . . . . . . . . . Garrison Access 5 | . . . . . . . . . . . . 2 2 . 1 . . Total Hacks 172 | . 24 . 11 . 3 . 2 3 . 29 . 16 17 21 40 . 6 Successful 91 | . 14 . 3 . 3 . 2 1 . 29 . 7 1 6 20 . 5 Failed 81 | . 10 . 8 . . . . 2 . . . 9 16 15 20 . 1 Catastrophic 25 | . 4 . 3 . . . . . . . . 5 6 4 3 . . Database Lockouts . | . . . . . . . . . . . . . . . . . . Manual 57 | . 6 . 4 . 2 . . . . . . 4 8 17 15 . 1 Terminals 128 | . 24 . 11 . . . . 3 . . . 12 14 21 39 . 4 Fabricators 2 | . . . . . . . . . . . . . . . . . 2 Repair Stations . | . . . . . . . . . . . . . . . . . . Recycling Units . | . . . . . . . . . . . . . . . . . . Scanalyzers 2 | . . . . . . . 2 . . . . . . . . . . Garrison Access 8 | . . . . . . . . . . . . 4 3 . 1 . . Terminal Hacks 75 | . 13 . 3 . 3 . . 1 . 29 . 3 . 4 16 . 3 Record 16 | . . . . . 2 . . . . 11 . . . . 3 . . Part Schematic 14 | . 1 . . . . . . . . 10 . . . 1 2 . . Robot Schematic 5 | . . . . . . . . . . 5 . . . . . . . Prototype ID Bank 4 | . . . 1 . . . . . . 3 . . . . . . . Open Door 1 | . . . . . . . . . . . . . . . . . 1 Level Access Points 3 | . . . . . . . . . . . . 1 . 1 1 . . Branch Access Points 2 | . 1 . . . . . . . . . . . . . 1 . . Emergency Access Points 2 | . 2 . . . . . . . . . . . . . . . . Machine Index 1 | . . . . . . . . . . . . . . . 1 . . Terminal Index 1 | . . . . . . . . . . . . . . . . . 1 Alert Level 2 | . 1 . . . . . . . . . . . . . 1 . . Unreport Threat 3 | . . . . . . . . . . . . 2 . . 1 . . Locate Traps 8 | . 3 . . . . . . 1 . . . . . 1 2 . 1 Dispatch Records 1 | . 1 . . . . . . . . . . . . . . . . Security Status 1 | . . . . . . . . . . . . . . . 1 . . Reinforcement Status 1 | . 1 . . . . . . . . . . . . . . . . Recall Extermination 1 | . . . . . . . . . . . . . . 1 . . . Hauler Manifests 2 | . 1 . 1 . . . . . . . . . . . . . . Registered Components 1 | . . . . . . . . . . . . . . . 1 . . Registered Prototypes 1 | . . . . . . . . . . . . . . . 1 . . Zone Layout 4 | . 2 . 1 . . . . . . . . . . . 1 . . Derelict Proto ID Bank 1 | . . . . . 1 . . . . . . . . . . . . Fabricator Hacks 2 | . . . . . . . . . . . . . . . . . 2 Load Schematic 1 | . . . . . . . . . . . . . . . . . 1 Build 1 | . . . . . . . . . . . . . . . . . 1 Repair Station Hacks . | . . . . . . . . . . . . . . . . . . Recycling Unit Hacks . | . . . . . . . . . . . . . . . . . . Scanalyzer 2 | . . . . . . . 2 . . . . . . . . . . Insert Component 2 | . . . . . . . 2 . . . . . . . . . . Garrison Access Hacks 4 | . . . . . . . . . . . . 2 1 . 1 . . Seal Access 4 | . . . . . . . . . . . . 2 1 . 1 . . Unauthorized Hacks 8 | . 1 . . . . . . . . . . 2 . 2 3 . . Terminals 8 | . 1 . . . . . . . . . . 2 . 2 3 . . Assimilate 2 | . 1 . . . . . . . . . . . . . 1 . . Botnet 6 | . . . . . . . . . . . . 2 . 2 2 . . Fabricators . | . . . . . . . . . . . . . . . . . . Repair Stations . | . . . . . . . . . . . . . . . . . . Recycling Units . | . . . . . . . . . . . . . . . . . . Scanalyzers . | . . . . . . . . . . . . . . . . . . Garrison Access . | . . . . . . . . . . . . . . . . . . Data Cores Recovered 1 | . 1 . . . . . . . . . . . . . . . . Used 1 | . 1 . . . . . . . . . . . . . . . . Hacking Detections 40 | . 6 . 5 . . . 1 1 . . . 7 8 4 7 . 1 Full Trace Events 4 | . 3 . . . . . . . . . . . 1 . . . . Feedback Events . | . . . . . . . . . . . . . . . . . . Feedback Blocked . | . . . . . . . . . . . . . . . . . . Robot Schematics Acquired 5 | . . . . . . . . . . 5 . . . . . . . Robots Built . | . . . . . . . . . . . . . . . . . . Authchips . | . . . . . . . . . . . . . . . . . . Time . | . . . . . . . . . . . . . . . . . . Total Robot Build Rating . | . . . . . . . . . . . . . . . . . . Part Schematics Acquired 14 | . 1 . . . . . . . . 10 . . . 1 2 . . Parts Built 2 | . . . . . . . . . . . . . . . . . 2 Authchips 1 | . . . . . . . . . . . . . . . . . 1 Time 39 | . . . . . . . . . . . . . . . . . 39 Total Part Build Rating 14 | . . . . . . . . . . . . . . . . . 14 Parts Repaired . | . . . . . . . . . . . . . . . . . . Time . | . . . . . . . . . . . . . . . . . . Parts Recycled . | . . . . . . . . . . . . . . . . . . Recycled Matter . | . . . . . . . . . . . . . . . . . . Retrieved Matter . | . . . . . . . . . . . . . . . . . . Retrieved Components . | . . . . . . . . . . . . . . . . . . Parts Scanalyzed . | . . . . . . . . . . . . . . . . . . Part Schematics Acquired . | . . . . . . . . . . . . . . . . . . Parts Damaged . | . . . . . . . . . . . . . . . . . . Bothacking | -11 -10 -10 -9 -9 -9 -8 -8 -7 -7 -7 -6 -6 -5 -4 -3 -2 -1 ------------ Run | Yrd Mat Min Mat Min Exi Min Mat Fac Low Dat Pro Fac Fac Fac Res Res Acc Used RIF Installer . | . . . . . . . . . . . . . . . . . . Robots Hacked 1 | . . . . . . . . . . . . . . 1 . . . Non-combat 1 | . . . . . . . . . . . . . . 1 . . . Combat . | . . . . . . . . . . . . . . . . . . Robot Hacks Applied 1 | . . . . . . . . . . . . . . 1 . . . parse_system 1 | . . . . . . . . . . . . . . 1 . . . Relay Couplers Released . | . . . . . . . . . . . . . . . . . . Fabnet Peak Effective % . | . . . . . . . . . . . . . . . . . . Robots Rewired 1 | . . . . . . . . . . . 1 . . . . . . Allies Hacked . | . . . . . . . . . . . . . . . . . . Hacks Repelled . | . . . . . . . . . . . . . . . . . . Allies | -11 -10 -10 -9 -9 -9 -8 -8 -7 -7 -7 -6 -6 -5 -4 -3 -2 -1 -------- Run | Yrd Mat Min Mat Min Exi Min Mat Fac Low Dat Pro Fac Fac Fac Res Res Acc Total Allies 4 | . . . . 3 . . . . . . 1 . . . . . . Largest Group 3 | . . . . 3 3 3 . . . . 1 1 . . . . . Highest-Rated Group 40 | . . . . 40 40 40 . . . . 20 20 . . . . . Highest-Rated Ally 20 | . . . . 16 16 16 . . . . 20 20 . . . . . Total Orders 2 | . . . . . . . . . . . . 2 . . . . . STAY 1 | . . . . . . . . . . . . 1 . . . . . FOLLOW 1 | . . . . . . . . . . . . 1 . . . . . Ally Attacks 14 | . . . . . . 14 . . . . . . . . . . . Total Damage 112 | . . . . . . 112 . . . . . . . . . . . Kills 1 | . . . . . . 1 . . . . . . . . . . . Allies Corrupted . | . . . . . . . . . . . . . . . . . . Allies Melted . | . . . . . . . . . . . . . . . . . . Intel | -11 -10 -10 -9 -9 -9 -8 -8 -7 -7 -7 -6 -6 -5 -4 -3 -2 -1 ------- Run | Yrd Mat Min Mat Min Exi Min Mat Fac Low Dat Pro Fac Fac Fac Res Res Acc Robot Analysis Total . | . . . . . . . . . . . . . . . . . . Derelict Logs Recovered 3 | . . . . . . . . . 1 . 2 . . . . . . Drone Launches . | . . . . . . . . . . . . . . . . . . Drone Recoveries . | . . . . . . . . . . . . . . . . . . Exploration | -11 -10 -10 -9 -9 -9 -8 -8 -7 -7 -7 -6 -6 -5 -4 -3 -2 -1 ------------- Run | Yrd Mat Min Mat Min Exi Min Mat Fac Low Dat Pro Fac Fac Fac Res Res Acc Turns Passed 10730 | 77 1126 367 1089 163 527 178 692 413 787 104 1551 1438 521 437 502 371 387 Spaces Moved 8303 | 47 609 184 573 119 400 95 626 296 481 90 874 1002 659 637 579 541 491 Core 4 | 4 . . . . . . . . . . . . . . . . . Treads 18 | 18 . . . . . . . . . . . . . . . . . Legs 1049 | 25 609 184 231 . . . . . . . . . . . . . . Wheels 3220 | . . . 342 119 400 95 175 296 481 90 874 348 . . . . . Hover . | . . . . . . . . . . . . . . . . . . Flight 4012 | . . . . . . . 451 . . . . 654 659 637 579 541 491 Fastest Speed 42 | 50 120 190 115 130 130 130 50 115 115 115 115 50 50 42 42 42 44 Average Speed 90 | 129 128 190 125 130 130 130 70 125 115 115 136 82 50 42 42 42 44 Slowest Speed 230 | 160 190 190 130 130 130 130 145 130 115 115 160 230 50 42 42 44 44 Overloaded Moves . | . . . . . . . . . . . . . . . . . . Propulsion Burnouts . | . . . . . . . . . . . . . . . . . . Robots Hopped 28 | . . . . . . . 1 . . . . 9 3 4 4 3 4 Cave-ins Triggered . | . . . . . . . . . . . . . . . . . . Exploration Rate (%) 40 | 4 86 40 57 21 80 23 25 9 75 74 93 30 28 22 24 17 13 Regions Visited 17 Branch Regions 7 Pre-discovered Areas 1 | . . . . . . . . . . 1 . . . . . . . Known Exits Taken 4 | . 1 . . . . . . . . . . 1 . 1 1 . . Unknown Exits Taken 13 | 1 . 1 1 1 1 1 1 1 1 1 1 . 1 . . 1 . Scrap Searched 6 | . . . . . . . . . 5 . 1 . . . . . . Spaces Dug 200 | . 3 . 5 . . . 24 1 . . 15 25 29 10 19 42 27 Terrain Destroyed 380 | . 3 . 5 . . . 94 1 4 . 112 26 29 10 19 50 27 Melee 84 | . 3 . 5 . . . 5 1 . . . 25 19 10 16 . . Projectile 73 | . . . . . . . 7 . 4 . 1 1 10 . 3 20 27 AOE 223 | . . . . . . . 82 . . . 111 . . . . 30 . Terrain Rammed . | . . . . . . . . . . . . . . . . . . Walls Destroyed . | . . . . . . . . . . . . . . . . . . Machines Disabled . | . . . . . . . . . . . . . . . . . . Actions | -11 -10 -10 -9 -9 -9 -8 -8 -7 -7 -7 -6 -6 -5 -4 -3 -2 -1 --------- Run | Yrd Mat Min Mat Min Exi Min Mat Fac Low Dat Pro Fac Fac Fac Res Res Acc Total 10818 | 59 842 202 840 127 409 125 803 331 669 90 1194 1485 802 783 798 636 623 Wait 1794 | . 139 19 173 9 1 16 92 22 147 . 258 357 104 123 192 47 95 Move 8233 | 46 608 183 572 118 399 94 623 295 480 89 873 985 652 628 571 534 483 Hop 24 | . . . . . . . 1 . . . . 7 3 4 3 3 3 Pick Up 86 | 6 9 . 6 . 1 . 17 3 4 . 8 13 3 5 4 5 2 Fast Attach 40 | 6 3 . 7 . 1 . 4 1 . . 2 9 1 1 1 2 2 Attach 39 | . . . 2 . . . 2 3 7 . 2 16 1 1 1 3 1 Detach 1 | . . . . . . . . . . . . 1 . . . . . Swap 87 | 1 14 . 13 . 1 2 10 3 6 1 8 11 3 6 1 4 3 Drop 88 | . 13 . 15 . 6 1 9 1 1 . 1 21 5 4 3 6 2 Fire 269 | . 50 . 46 . . 12 31 . 18 . 22 13 10 . 3 32 32 Melee 137 | . 6 . 6 . . . 13 3 6 . 1 52 20 11 19 . . Ram 1 | . . . . . . . 1 . . . . . . . . . . Kick . | . . . . . . . . . . . . . . . . . . Crush . | . . . . . . . . . . . . . . . . . . Escape Stasis . | . . . . . . . . . . . . . . . . . . Rewire 19 | . . . . . . . . . . . 19 . . . . . . Trap . | . . . . . . . . . . . . . . . . . . Miscellaneous . | . . . . . . . . . . . . . . . . . . Route ------- -11/Scrapyard -10/Materials (discovered 4 exits: *Mat x2 / *Min x2) -10/Mines -9/Materials (discovered 3 exits: *Mat x2 / [*Min]) -9/Mines -9/Exiles (discovered 2 exits: [*Min x2]) -8/Mines -8/Materials -7/Factory (discovered 2 exits: [*Low x2]) -7/Lower Caves (discovered 2 exits: Low / *Dat) -7/Data Miner -6/Proximity Caves -6/Factory (discovered 6 exits: *Fac x4 / [*Low x2]) -5/Factory (discovered 2 exits: *Fac / Upp) -4/Factory (discovered 5 exits: *Res x4 / [*Upp]) -3/Research (discovered 5 exits: *Res x3 / Tes x2) -2/Research (discovered 2 exits: *Acc x2) -1/Access To Epsilon Eridani History --------- Turn | Location | Event 11 | -11/Scrapyard | Discovered new exit (range 15) 78 | -11/Scrapyard | Entered Materials 125 | -10/Materials | Identified exit to Mines 313 | -10/Materials | Build established: Mutant 425 | -10/Materials | Discovered new exit (range 11) 892 | -10/Materials | Discovered new exit (range 6) 1204 | -10/Materials | Entered Mines 1543 | -10/Mines | Discovered new exit (range 13) 1571 | -10/Mines | Entered Materials 1571 | -9/Materials | Evolved 2 slots: Propulsion x1, Utility x1 2027 | -9/Materials | Destroyed 10 combat bots 2149 | -9/Materials | Build established: Scavenger-Mutant 2182 | -9/Materials | Discovered new exit (range 13) 2500 | -9/Materials | Discovered new exit (range 17) 2653 | -9/Materials | Discovered new exit (range 6) 2660 | -9/Materials | Entered Mines 2682 | -9/Mines | Received a Rocket Launcher from a helpful Derelict 2730 | -9/Mines | Deemed a non-threat by the Exiles lab entrance 2730 | -9/Mines | Discovered new exit (range 5) 2771 | -9/Mines | Assisted by bots powering up and referring to "LRC-V3" 2823 | -9/Mines | Entered Exiles 2823 | -9/Exiles | Accompanied by 3 allies 2843 | -9/Exiles | Discovered new exit (range 15) 2869 | -9/Exiles | Met 8R-AWN 2892 | -9/Exiles | Met EX-HEX 2927 | -9/Exiles | Met EX-BIN 2947 | -9/Exiles | Aligned with FarCom system 2948 | -9/Exiles | Given EX-Vault access code 2978 | -9/Exiles | Opened EX-Vault 2989 | -9/Exiles | Found Flying Fortress v7 3048 | -9/Exiles | Warned to stay clear of 0b10 Research branches 3085 | -9/Exiles | Met EX-DEC 3216 | -9/Exiles | Visited The Gauntlet 3336 | -9/Exiles | Discovered new exit (range 10) 3350 | -9/Exiles | Left Exiles lab with Flying Fortress v7 3350 | -9/Exiles | Entered Mines 3350 | -8/Mines | Accompanied by 3 allies 3426 | -8/Mines | Lost 3 allies 3478 | -8/Mines | Build established: Mutant 3522 | -8/Mines | Discovered new exit (range 6) 3528 | -8/Mines | Entered Materials 3528 | -8/Materials | Evolved 2 slots: Propulsion x1, Utility x1 4203 | -8/Materials | Discovered new exit (range 15) 4220 | -8/Materials | Entered Factory 4220 | -7/Factory | Evolved 2 slots: Utility x2 4254 | -7/Factory | Discovered new exit (range 5) 4478 | -7/Factory | Discovered new exit (range 12) 4529 | -7/Factory | Build established: Skirmisher 4633 | -7/Factory | Entered Lower Caves 4930 | -7/Lower Caves | Build established: Mutant 4989 | -7/Lower Caves | Spotted B-75 Beast 5028 | -7/Lower Caves | Attracted the attention of an 0b10 outpost 5118 | -7/Lower Caves | Lost 4 parts (1p1u2w) 5147 | -7/Lower Caves | Encountered a Warlord checkpoint 5282 | -7/Lower Caves | Lost 3 parts (1n2u) 5371 | -7/Lower Caves | Identified exit to Lower Caves 5405 | -7/Lower Caves | A Derelict revealed a hidden shortcut to meet someone special 5420 | -7/Lower Caves | Entered Data Miner 5420 | -7/Data Miner | Discovered new exit (range 6) 5442 | -7/Data Miner | Met Data Miner 5473 | -7/Data Miner | Acquired the access code to Warlord's prototype stash 5473 | -7/Data Miner | Learned location of Section 7 (-2) 5485 | -7/Data Miner | Received God Mode back door access code from Data Miner 5524 | -7/Data Miner | Entered Proximity Caves 5584 | -6/Proximity Caves | Learned Factory garrison access intel 5701 | -6/Proximity Caves | Found Imp. Powered Armor 6141 | -6/Proximity Caves | Spotted B-75 Beast 6313 | -6/Proximity Caves | Attracted the attention of an 0b10 outpost 6406 | -6/Proximity Caves | Destroyed 9 combat bots 6411 | -6/Proximity Caves | Lost 4 parts (1p3u) 6549 | -6/Proximity Caves | Discovered new exit (range 15) 6787 | -6/Proximity Caves | Received a Behemoth hack from an annoying Tinkerer 7075 | -6/Proximity Caves | Entered Factory 7075 | -6/Factory | Accompanied by 1 ally 7075 | -6/Factory | Evolved 2 slots: Utility x2 7076 | -6/Factory | Loaded intel: 4 garrison access locations 7381 | -6/Factory | P-60 Hacker assimilated allied Gladiator 5a 7465 | -6/Factory | Lost 5 parts (1p1n2u1w) 7928 | -6/Factory | Lost 5 parts (2n2u1w) 8082 | -6/Factory | Identified exit to Factory 8087 | -6/Factory | Discovered new exit (range 21) 8209 | -6/Factory | Build established: Scout 8448 | -6/Factory | Discovered new exit (range 19) 8513 | -6/Factory | Entered another Factory area 8513 | -5/Factory | Evolved 2 slots: Utility x2 8514 | -5/Factory | Identified exit to Upper Caves 8989 | -5/Factory | Discovered new exit (range 20) 9023 | -5/Factory | Build established: Hacker-Scout 9034 | -5/Factory | Entered another Factory area 9034 | -4/Factory | Evolved 2 slots: Propulsion x2 9057 | -4/Factory | Identified exit to Research 9146 | -4/Factory | Discovered new exit (range 4) 9327 | -4/Factory | Spotted B-86 Titan 9471 | -4/Factory | Entered Research 9471 | -3/Research | Evolved 2 slots: Utility x2 9611 | -3/Research | Identified exit to Testing 9714 | -3/Research | Identified exit to Research 9900 | -3/Research | Found Prototype Device 9914 | -3/Research | Identified Exp. Shield Generator 9973 | -3/Research | Entered another Research area 9973 | -2/Research | Evolved 2 slots: Utility x2 10103 | -2/Research | Discovered new exit (range 13) 10169 | -2/Research | Found Prototype Processor 10170 | -2/Research | Identified Exp. Targeting Computer 10290 | -2/Research | Discovered new exit (range 12) 10344 | -2/Research | Entered Access 10344 | -1/Access | Evolved 2 slots: Utility x2 10586 | -1/Access | Fabricated Adv. Trap Scanner (x2) 10633 | -1/Access | Spotted B-99 Colossus 10646 | -1/Access | Build established: Wizard-Scout 10728 | -1/Access | Discovered new exit (range 6) 10730 | -1/Access | Identified exit to Surface 10731 | *** | Escaped! Last Messages --------------- Rating: 7 Time: 39 Initiate build sequence. >>Build Authchip [Device] accepted. Building Adv. Trap Scanner... ETC: 39 10586_ Fabricator completes Adv. Trap Scanner. 10586_ Acquired Adv. Trap Scanner. 10587_ Dropped Imp. Trap Scanner. 10594_ ALERT: Rogue bot located, Programmers report to Access Zone 5N. 10610_ U-05 Engineer builds a Wall. 10723_ W-44 Eye sends out distress signal. 10723_ W-44 Eye distress signal jammed. 10727_ Connecting with Terminal... >>Open(Door) Sealed Barrier opened. 10728_ The Access Shell folds into the floor. 10728_ EXIT=FOUND 10730_ EXIT=IDENTIFIED: SURFACE Map ----- +----------------------------------------------------+ | "" ##??????#???????????????????????????? | | """""" #?#? #??????????????????????????????? | | """""" ] #???????#???????????????????????????? | | "" #??##?#?#??##???????????????????????? | | "" ?? #??? ??? ?? ????????????????????????? | | ? ? # ??? ??? ?????????????????????????? | | ? ? #? ? ?????#????????????????????? | | ? + ? ???? ? ??#??????????????????????? | | ###??###### # ???????? ?????????????????????????? | | ######### # ??? ?? ???##???#????????????????? | | # #p # ?? ?" ? ? ????????????????????????? | | # # #?? ??????? ?##?#??#????????????????? | | # # #? ??????????##?????????????????????? | | # # # ?"?"??? ???????#???????????????? | | # /p # ??""???????#????????????#?????????? | | # # # ? ? ?? ? ##??#??????????????????? | | # = # #?#??????????????#?#????????????????? | | ######### #??##??#???##??????##?##????????????? | | ###??##?#w ##???####???###??????#??#???????????? | | ####??#?# ####### ##########????????????#?????? | | ####?#### """T""" "??"???????????????? | | ###########w """ """ "?"??BB????????????? | | """"""" ## k ""???BB????????????? | | "T"""" # "??"???????????????? | | ##R "" "??"???????????????? | | ?# @" "??"??????g?g??????? | | ? ?# "??????????gg??????? | | !!! ?# k "?"??BB??? ????????? | | !!! Y## "????BB????????????? | | !! ???## "??????????#???????? | | ?## u####### ##########???#??????????????? | | ?## #???#?###????????????#??????#???????? | | ####+####?# ######?????#????????#???????????????? | | + ?###?# #? ????? ?????????#????? ???????????? | | # ##?### #???"?" ????????????????????????????? | | # ###### /??""????????????T?"????????????????? | | # ?###??# #????????? ?????? ??????????????????? | | # ###?## ?? ???? ????? ?????? ???????????????? | | # ?##??# ??? ? ????????? ????????????????????? | | ### ###??# ?????? ??? ????? ???????????????????? | | ^ ?##??# #??????????? ???????????????????????? | | ###?## #???? g???????????????? ????????????? | | ?###?#? ????????????????????????????????????? | | ? ##???# ?????????????????????????????????????? | | ? ###??? ?????????????????????????????????????? | | ##????? ?#??????????????????????????????????? | | ##?#?? ?????????????????????????????????????? | | ? ????????????????????????????????????????? | | ? ?? ? ??? ? ?????????????????????????????????? | | ###+####?????????????????????????????????????????? | +----------------------------------------------------+ Best States ------------- Heat Dissipation 71 Energy Generation 31 Energy Capacity 315 Matter Stores 300 Matter Capacity 300 Sight Range 22 Terrain Scan Range 20 Terrain Scan Density 210 ECM Strength 2 Jamming Range 12 Power Amplification 30 Corruption Containment 12 Armor Coverage 775 Resistance: EM 20 Weapon Shielding 66 Evasion (%) 61 Recoil Reduction 1 Matter Filtering 50 Offensive Hacking 36 Defensive Hacking 24 Authchip Count 3 Item Schematics ----------------- Lrg. Storage Unit | -10/Materials | Hacked Combat Drone Bay | -7/Data Miner | Free Lgt. Regenerative Plating | -7/Data Miner | Free Biomechanical Wings | -7/Data Miner | Free Gravity Neutralizer | -7/Data Miner | Free Imp. Heavy Machine Gun | -7/Data Miner | Free Arm. Medium Treads | -7/Data Miner | Free Adv. Shield Generator | -7/Data Miner | Free Disruptor Cannon | -7/Data Miner | Free Hvy. Shock Bomb Launcher | -7/Data Miner | Free Hardcell Cannon | -7/Data Miner | Free Imp. Cooling System | -4/Factory | Hacked Adv. Hacking Suite | -3/Research | Hacked Adv. Trap Scanner | -3/Research | Hacked Robot Schematics ------------------ A-15 Conveyor | -7/Data Miner | Free M-14 Sweeper | -7/Data Miner | Free M-22 Extractor | -7/Data Miner | Free S-27 Virus | -7/Data Miner | Free B-60 Warrior | -7/Data Miner | Free Fabricated ------------ Adv. Trap Scanner | x2 | -1/Access | Authchip Alien Tech Used ----------------- None Achievements -------------- Cya! root@ Challenges ------------ None Game ------ Seed ArmageddonWardroneCorpse Manual? 0 Play Time 03:20:44 Cumulative 121.1 hours Start 2024.05.07 @ 00:11:34 End 2024.05.07 @ 03:43:23 Sessions 1 Manual Loads 0 Difficulty Rogue Special Mode None Game No. 79 Rogue 79 Adventurer 0 Explorer 0 Win Type 0 Total 3 Types 3/0/0/0/0/0/0/0/0 Lore% 40 Gallery% 52 Achievement% 33 Wizard Run 0 Options --------- Layout 0 ASCII 0 Keyboard 0 Movement Numpad Keybinds 0 Fullscreen 1 Font 24/X11 Map View 76x50 Zoom Use 0% Tactical HUD 1 Map Filters NONE Filters NONE Steam 1 RUN: c19cf1d8-f670-45da-903f-4543dd2f7630